Department Family,Entity,Date Paid,Expense Type,Expense Area,Supplier,Transaction Number,Amount (�),Supplier VAT Registration Number
BEIS,Met Office,2022-12-08,06 ACCOMMODATION,CHIEF FINANCIAL OFFICER,ABOVE THE REST COMMERCIAL CLEANING LTD,474343,41,166969348
BEIS,Met Office,2022-12-08,06 ACCOMMODATION,CHIEF FINANCIAL OFFICER,ABOVE THE REST COMMERCIAL CLEANING LTD,474344,565,166969348
BEIS,Met Office,2022-12-20,11 SERVICES,CHIEF FINANCIAL OFFICER,ACTIVE PEST MANAGEMENT,474706,86.1,791419116
BEIS,Met Office,2022-12-08,11 SERVICES,CHIEF FINANCIAL OFFICER,ADT FIRE AND SECURITY PLC,474345,337.51,413633086
BEIS,Met Office,2022-12-20,03 STAFF COSTS T&S,CHIEF FINANCIAL OFFICER,ALLSTAR BUSINESS SOLUTIONS LTD,474712,3720.55,747880191
BEIS,Met Office,2022-12-06,03 STAFF COSTS T&S,CHIEF FINANCIAL OFFICER,ALLSTAR BUSINESS SOLUTIONS LTD,474230,3968.74,747880191
BEIS,Met Office,2022-12-13,11 SERVICES,CHIEF FINANCIAL OFFICER,ANVIL MOBILE LIMITED,474476,128.15,981686175
BEIS,Met Office,2022-12-06,03 STAFF COSTS T&S,CHIEF FINANCIAL OFFICER,APPLE CENTRAL TAXIS,474263,1672.7,449238720
BEIS,Met Office,2022-12-12,11 SERVICES,CHIEF FINANCIAL OFFICER,Ashfords Llp,474369,360,844502439
BEIS,Met Office,2022-12-20,11 SERVICES,CHIEF FINANCIAL OFFICER,BABBLE CLOUD LIMITED,474670,1080.15,GB206270049
BEIS,Met Office,2022-12-12,13 MISCELLANEOUS,CHIEF FINANCIAL OFFICER,BANNER GROUP LIMITED,474400,2.16,GB391085740
BEIS,Met Office,2022-12-02,04 CONTRACTORS,CHIEF FINANCIAL OFFICER,BEIS,474145,9831.83,888825550
BEIS,Met Office,2022-12-08,06 ACCOMMODATION,CHIEF FINANCIAL OFFICER,Belfast International Airport Ltd,474380,3264.39,617777601
BEIS,Met Office,2022-12-07,06 ACCOMMODATION,CHIEF FINANCIAL OFFICER,BIDVEST NOONAN UK LTD,474265,457.31,GB847176988
BEIS,Met Office,2022-12-07,06 ACCOMMODATION,CHIEF FINANCIAL OFFICER,BIDVEST NOONAN UK LTD,474266,1013.83,GB847176988
BEIS,Met Office,2022-12-12,11 SERVICES,CHIEF FINANCIAL OFFICER,British Red Cross Society,474373,101,706926227
BEIS,Met Office,2022-12-12,11 SERVICES,CHIEF FINANCIAL OFFICER,British Red Cross Society,474374,101,706926227
BEIS,Met Office,2022-12-13,11 SERVICES,CHIEF FINANCIAL OFFICER,BT CONFERENCING,474494,46.57,245719348
BEIS,Met Office,2022-12-20,11 SERVICES,CHIEF FINANCIAL OFFICER,BT GLOBAL SERVICES,474721,781.15,245719348
BEIS,Met Office,2022-12-08,11 SERVICES,CHIEF FINANCIAL OFFICER,BT GLOBAL SERVICES,474382,787.69,245719348
BEIS,Met Office,2022-12-12,06 ACCOMMODATION,CHIEF FINANCIAL OFFICER,BUSINESS SUPPORT CENTRE LTD,474429,1027.28,927365208
BEIS,Met Office,2022-12-13,06 ACCOMMODATION,CHIEF FINANCIAL OFFICER,CALOR GAS LIMITED,474468,460.76,207610984
BEIS,Met Office,2022-12-20,13 MISCELLANEOUS,CHIEF FINANCIAL OFFICER,CANON UK LTD,474606,7.41,523797128
BEIS,Met Office,2022-12-20,13 MISCELLANEOUS,CHIEF FINANCIAL OFFICER,CANON UK LTD,474606,46.32,523797128
BEIS,Met Office,2022-12-20,13 MISCELLANEOUS,CHIEF FINANCIAL OFFICER,CANON UK LTD,474606,66.58,523797128
BEIS,Met Office,2022-12-20,13 MISCELLANEOUS,CHIEF FINANCIAL OFFICER,CANON UK LTD,474606,161.54,523797128
BEIS,Met Office,2022-12-20,13 MISCELLANEOUS,CHIEF FINANCIAL OFFICER,CANON UK LTD,474606,261.58,523797128
BEIS,Met Office,2022-12-20,13 MISCELLANEOUS,CHIEF FINANCIAL OFFICER,CANON UK LTD,474606,5749.97,523797128
BEIS,Met Office,2022-12-07,13 MISCELLANEOUS,CHIEF FINANCIAL OFFICER,CARDIFF EXECUTIVE CENTRE LTD,474217,4.74,864497378
BEIS,Met Office,2022-12-06,13 MISCELLANEOUS,CHIEF FINANCIAL OFFICER,CARDIFF EXECUTIVE CENTRE LTD,474150,16.62,864497378
BEIS,Met Office,2022-12-06,06 ACCOMMODATION,CHIEF FINANCIAL OFFICER,CARDIFF EXECUTIVE CENTRE LTD,474216,2470,864497378
BEIS,Met Office,2022-12-13,FIXTURE & FITTINGS,CHIEF FINANCIAL OFFICER,CBRE MANAGED SERVICES LTD,474473,4589,853936883
BEIS,Met Office,2022-12-12,11 SERVICES,CHIEF FINANCIAL OFFICER,CBRE MANAGED SERVICES LTD,474431,12049.35,853936883
BEIS,Met Office,2022-12-15,06 ACCOMMODATION,CHIEF FINANCIAL OFFICER,CBRE MANAGED SERVICES LTD,474545,12610.4,853936883
BEIS,Met Office,2022-12-15,PLANT AND EQUIPMENT,CHIEF FINANCIAL OFFICER,CBRE MANAGED SERVICES LTD,474541,15028.13,853936883
BEIS,Met Office,2022-12-13,06 ACCOMMODATION,CHIEF FINANCIAL OFFICER,CBRE MANAGED SERVICES LTD,474490,16651.13,853936883
BEIS,Met Office,2022-12-20,PLANT AND EQUIPMENT,CHIEF FINANCIAL OFFICER,CBRE MANAGED SERVICES LTD,474555,24414.8,853936883
BEIS,Met Office,2022-12-13,06 ACCOMMODATION,CHIEF FINANCIAL OFFICER,CBRE MANAGED SERVICES LTD,474478,27809.34,853936883
BEIS,Met Office,2022-12-15,06 ACCOMMODATION,CHIEF FINANCIAL OFFICER,CBRE MANAGED SERVICES LTD,474544,149176.92,853936883
BEIS,Met Office,2022-12-12,06 ACCOMMODATION,CHIEF FINANCIAL OFFICER,CELLNEX,474377,952,GB 843 8792 82
BEIS,Met Office,2022-12-20,08 SOFTWARE LICENCES,CHIEF FINANCIAL OFFICER,CEMAR,474749,850,915042161
BEIS,Met Office,2022-12-08,11 SERVICES,CHIEF FINANCIAL OFFICER,COOPERS2 LTD,474294,7000,134 2026 58
BEIS,Met Office,2022-12-06,06 ACCOMMODATION,CHIEF FINANCIAL OFFICER,D&G OFFICE SERVICES LTD,474040,373.34,272997547
BEIS,Met Office,2022-12-13,11 SERVICES,CHIEF FINANCIAL OFFICER,DEVON WILDLIFE ENTERPRISES LTD,474485,60,585473501
BEIS,Met Office,2022-12-20,13 MISCELLANEOUS,CHIEF FINANCIAL OFFICER,EAST ANGLIAN WATER COOLER CO,474665,41.4,676668178
BEIS,Met Office,2022-12-07,13 MISCELLANEOUS,CHIEF FINANCIAL OFFICER,EDEN SPRINGS UK LTD,474325,432.98,232160411
BEIS,Met Office,2022-12-07,13 MISCELLANEOUS,CHIEF FINANCIAL OFFICER,EDEN SPRINGS UK LTD,474326,551.91,232160411
BEIS,Met Office,2022-12-20,06 ACCOMMODATION,CHIEF FINANCIAL OFFICER,EDF ENERGY CUSTOMERS PLC,474607,169184.53,523041202
BEIS,Met Office,2022-12-20,06 ACCOMMODATION,CHIEF FINANCIAL OFFICER,EDF ENERGY CUSTOMERS PLC,474608,447388.71,523041202
BEIS,Met Office,2022-12-09,03 STAFF COSTS T&S,CHIEF FINANCIAL OFFICER,ENTERPRISE RENT A CAR UK LTD,474403,86.42,215557314
BEIS,Met Office,2022-12-14,03 STAFF COSTS T&S,CHIEF FINANCIAL OFFICER,ENTERPRISE RENT A CAR UK LTD,474625,245.63,215557314
BEIS,Met Office,2022-12-12,03 STAFF COSTS T&S,CHIEF FINANCIAL OFFICER,ENTERPRISE RENT A CAR UK LTD,474483,1870.05,215557314
BEIS,Met Office,2022-12-07,03 STAFF COSTS T&S,CHIEF FINANCIAL OFFICER,ENTERPRISE RENT A CAR UK LTD,474271,1939.1,215557314
BEIS,Met Office,2022-12-20,03 STAFF COSTS T&S,CHIEF FINANCIAL OFFICER,ENTERPRISE RENT A CAR UK LTD,474733,2644.3,215557314
BEIS,Met Office,2022-12-13,06 ACCOMMODATION,CHIEF FINANCIAL OFFICER,ENZO S-WEST T/A ENZO CORROSION SERVICES LTD,474535,-923,192 620 802
BEIS,Met Office,2022-12-13,06 ACCOMMODATION,CHIEF FINANCIAL OFFICER,ENZO S-WEST T/A ENZO CORROSION SERVICES LTD,472041,28950,192 620 802
BEIS,Met Office,2022-12-01,11 SERVICES,CHIEF FINANCIAL OFFICER,EXPONENTIAL-E,473995,-5066.7,GB798572653
BEIS,Met Office,2022-12-01,11 SERVICES,CHIEF FINANCIAL OFFICER,EXPONENTIAL-E,473400,363.14,GB798572653
BEIS,Met Office,2022-12-09,11 SERVICES,CHIEF FINANCIAL OFFICER,EXPONENTIAL-E,474402,571.12,GB798572653
BEIS,Met Office,2022-12-07,11 SERVICES,CHIEF FINANCIAL OFFICER,EXPONENTIAL-E,474264,2256.32,GB798572653
BEIS,Met Office,2022-12-01,11 SERVICES,CHIEF FINANCIAL OFFICER,EXPONENTIAL-E,473994,4949.41,GB798572653
BEIS,Met Office,2022-12-05,FIXTURE & FITTINGS,CHIEF FINANCIAL OFFICER,FMS INTERIOR SERVICES LTD,474160,48,922056940
BEIS,Met Office,2022-12-05,FIXTURE & FITTINGS,CHIEF FINANCIAL OFFICER,FMS INTERIOR SERVICES LTD,474160,50,922056940
BEIS,Met Office,2022-12-05,FIXTURE & FITTINGS,CHIEF FINANCIAL OFFICER,FMS INTERIOR SERVICES LTD,474160,290,922056940
BEIS,Met Office,2022-12-05,FIXTURE & FITTINGS,CHIEF FINANCIAL OFFICER,FMS INTERIOR SERVICES LTD,474160,1462.8,922056940
BEIS,Met Office,2022-12-06,FIXTURE & FITTINGS,CHIEF FINANCIAL OFFICER,FMS INTERIOR SERVICES LTD,474159,2904,922056940
BEIS,Met Office,2022-12-06,FIXTURE & FITTINGS,CHIEF FINANCIAL OFFICER,FMS INTERIOR SERVICES LTD,474005,34404.36,922056940
BEIS,Met Office,2022-12-13,11 SERVICES,CHIEF FINANCIAL OFFICER,GAMMA BUSINESS COMMUNICATIONS LTD,474474,570.83,823820344
BEIS,Met Office,2022-12-13,11 SERVICES,CHIEF FINANCIAL OFFICER,GAMMA TELECOM LTD,474471,26363.46,823820344
BEIS,Met Office,2022-12-12,11 SERVICES,CHIEF FINANCIAL OFFICER,GB GROUP PLC,474421,76.01,539716218
BEIS,Met Office,2022-12-12,11 SERVICES,CHIEF FINANCIAL OFFICER,GB GROUP PLC,474422,494.53,539716218
BEIS,Met Office,2022-12-12,11 SERVICES,CHIEF FINANCIAL OFFICER,GIBRALTAR NYNEX COMMUNICATIONS LTD,474401,660,NOVAT
BEIS,Met Office,2022-12-14,06 ACCOMMODATION,CHIEF FINANCIAL OFFICER,GOVERNMENT PROPERTY AGENCY,474015,-1942.7,888 8508 47
BEIS,Met Office,2022-12-14,06 ACCOMMODATION,CHIEF FINANCIAL OFFICER,GOVERNMENT PROPERTY AGENCY,473947,2015.07,888 8508 47
BEIS,Met Office,2022-12-06,06 ACCOMMODATION,CHIEF FINANCIAL OFFICER,GREAT WESTERN AIR AMBULANCE CHARITY,474246,50,-
BEIS,Met Office,2022-12-06,06 ACCOMMODATION,CHIEF FINANCIAL OFFICER,GRS BUILDING SERVICES SOUTH-WEST,474153,5740,-
BEIS,Met Office,2022-12-20,06 ACCOMMODATION,CHIEF FINANCIAL OFFICER,GVAV LIMITED,474747,2989.5,770015070
BEIS,Met Office,2022-12-20,06 ACCOMMODATION,CHIEF FINANCIAL OFFICER,HARVAIR LTD,474672,1500,N/A
BEIS,Met Office,2022-12-13,06 ACCOMMODATION,CHIEF FINANCIAL OFFICER,Health & Safety Laboratory,474497,18675.31,888810177
BEIS,Met Office,2022-12-20,11 SERVICES,CHIEF FINANCIAL OFFICER,INTEROUTE COMMUNICATIONS LIMITED,474669,7100,832 7071 39
BEIS,Met Office,2022-12-13,11 SERVICES,CHIEF FINANCIAL OFFICER,JERSEY TELECOM,474495,1287.21,NOTVATREG
BEIS,Met Office,2022-12-02,11 SERVICES,CHIEF FINANCIAL OFFICER,LEASEDRIVE RENTAL MANAGEMENT LTD,474151,0,733546040
BEIS,Met Office,2022-12-02,11 SERVICES,CHIEF FINANCIAL OFFICER,LEASEDRIVE RENTAL MANAGEMENT LTD,474151,496.24,733546040
BEIS,Met Office,2022-12-14,06 ACCOMMODATION,CHIEF FINANCIAL OFFICER,LHR BUSINESS SUPPORT CENTRE LTD,474619,3062.92,927365404
BEIS,Met Office,2022-12-02,11 SERVICES,CHIEF FINANCIAL OFFICER,LICENCE BUREAU LTD,474148,62.55,820219467
BEIS,Met Office,2022-12-14,11 SERVICES,CHIEF FINANCIAL OFFICER,MITIE SECURITY LTD,474292,167.52,416706654
BEIS,Met Office,2022-12-20,06 ACCOMMODATION,CHIEF FINANCIAL OFFICER,MITIE SECURITY LTD,474631,1170,416706654
BEIS,Met Office,2022-12-20,11 SERVICES,CHIEF FINANCIAL OFFICER,MITIE SECURITY LTD,474630,1311.72,416706654
BEIS,Met Office,2022-12-12,11 SERVICES,CHIEF FINANCIAL OFFICER,Morton Fraser LLP,474465,250,269129336
BEIS,Met Office,2022-12-09,13 MISCELLANEOUS,CHIEF FINANCIAL OFFICER,MOUCHEL BUS SERV LTD FRC PREPAYERS LEVY AC,474397,982,577815493
BEIS,Met Office,2022-12-15,06 ACCOMMODATION,CHIEF FINANCIAL OFFICER,MOUNT CHARLES GROUP LTD,474553,576.36,517116274
BEIS,Met Office,2022-12-21,07 EQUIPMENT,CHIEF FINANCIAL OFFICER,NATWEST COMMERCIAL CARDS DIVISION,474700,28.33,N/A
BEIS,Met Office,2022-12-06,13 MISCELLANEOUS,CHIEF FINANCIAL OFFICER,NORSCOTT VENDING SERVICES LTD,474163,85,751402071
BEIS,Met Office,2022-12-20,06 ACCOMMODATION,CHIEF FINANCIAL OFFICER,OCS Group UK Limited,474724,38389.42,GB238034379
BEIS,Met Office,2022-12-05,06 ACCOMMODATION,CHIEF FINANCIAL OFFICER,OCS Group UK Limited,474167,53876.25,GB238034379
BEIS,Met Office,2022-12-05,06 ACCOMMODATION,CHIEF FINANCIAL OFFICER,OCS Group UK Limited,474167,110148.22,GB238034379
BEIS,Met Office,2022-12-20,06 ACCOMMODATION,CHIEF FINANCIAL OFFICER,OCS Group UK Limited,474724,110148.22,GB238034379
BEIS,Met Office,2022-12-20,06 ACCOMMODATION,CHIEF FINANCIAL OFFICER,OCS Group UK Ltd,474723,54.81,238034379
BEIS,Met Office,2022-12-07,11 SERVICES,CHIEF FINANCIAL OFFICER,OPEN TEXT UK LTD,474267,100,837871308
BEIS,Met Office,2022-12-20,11 SERVICES,CHIEF FINANCIAL OFFICER,POSTURITE (UK) LTD,474243,34.07,583565114
BEIS,Met Office,2022-12-05,11 SERVICES,CHIEF FINANCIAL OFFICER,POSTURITE (UK) LTD,474000,37.29,583565114
BEIS,Met Office,2022-12-12,11 SERVICES,CHIEF FINANCIAL OFFICER,POSTURITE (UK) LTD,474364,45.26,583565114
BEIS,Met Office,2022-12-05,11 SERVICES,CHIEF FINANCIAL OFFICER,POSTURITE (UK) LTD,474156,50,583565114
BEIS,Met Office,2022-12-05,11 SERVICES,CHIEF FINANCIAL OFFICER,POSTURITE (UK) LTD,474001,149.44,583565114
BEIS,Met Office,2022-12-02,11 SERVICES,CHIEF FINANCIAL OFFICER,POSTURITE (UK) LTD,474094,149.44,583565114
BEIS,Met Office,2022-12-12,11 SERVICES,CHIEF FINANCIAL OFFICER,POSTURITE (UK) LTD,474365,195.79,583565114
BEIS,Met Office,2022-12-20,11 SERVICES,CHIEF FINANCIAL OFFICER,POSTURITE (UK) LTD,474426,198.57,583565114
BEIS,Met Office,2022-12-05,11 SERVICES,CHIEF FINANCIAL OFFICER,POSTURITE (UK) LTD,474002,207.67,583565114
BEIS,Met Office,2022-12-05,11 SERVICES,CHIEF FINANCIAL OFFICER,POSTURITE (UK) LTD,474157,227.9,583565114
BEIS,Met Office,2022-12-05,11 SERVICES,CHIEF FINANCIAL OFFICER,POSTURITE (UK) LTD,474003,566.22,583565114
BEIS,Met Office,2022-12-05,11 SERVICES,CHIEF FINANCIAL OFFICER,POSTURITE (UK) LTD,474048,715.79,583565114
BEIS,Met Office,2022-12-20,11 SERVICES,CHIEF FINANCIAL OFFICER,POSTURITE (UK) LTD,474427,738.73,583565114
BEIS,Met Office,2022-12-02,11 SERVICES,CHIEF FINANCIAL OFFICER,POSTURITE (UK) LTD,474095,1022.67,583565114
BEIS,Met Office,2022-12-14,06 ACCOMMODATION,CHIEF FINANCIAL OFFICER,PUBLIC SUB ACCOUNT - HMG 4806,474493,680,888805068
BEIS,Met Office,2022-12-20,03 STAFF COSTS T&S,CHIEF FINANCIAL OFFICER,RAINBOW CITY TAXIS,474748,54.99,724295039
BEIS,Met Office,2022-12-21,06 ACCOMMODATION,CHIEF FINANCIAL OFFICER,REDACTED � PERSONAL DATA,474498,520,-
BEIS,Met Office,2022-12-20,06 ACCOMMODATION,CHIEF FINANCIAL OFFICER,REDACTED � PERSONAL DATA,474658,3640,245894718
BEIS,Met Office,2022-12-06,06 ACCOMMODATION,CHIEF FINANCIAL OFFICER,REIDHAVEN ESTATE,474218,635,267190641
BEIS,Met Office,2022-12-12,06 ACCOMMODATION,CHIEF FINANCIAL OFFICER,RIVER RIDGE,474428,117.42,176286083
BEIS,Met Office,2022-12-13,06 ACCOMMODATION,CHIEF FINANCIAL OFFICER,SAFESTORE LTD,474484,3430.33,722887607
BEIS,Met Office,2022-12-20,06 ACCOMMODATION,CHIEF FINANCIAL OFFICER,Severn Trent Water Ltd,474754,214.01,486985565
BEIS,Met Office,2022-12-15,06 ACCOMMODATION,CHIEF FINANCIAL OFFICER,Severn Trent Water Ltd,474556,218.88,486985565
BEIS,Met Office,2022-12-06,06 ACCOMMODATION,CHIEF FINANCIAL OFFICER,SHARED ACCESS LTD,474219,7759.29,920672730
BEIS,Met Office,2022-12-13,FIXTURE & FITTINGS,CHIEF FINANCIAL OFFICER,SIGNS EXPRESS (EXETER),473940,35.84,631397439
BEIS,Met Office,2022-12-13,FIXTURE & FITTINGS,CHIEF FINANCIAL OFFICER,SIGNS EXPRESS (EXETER),473940,35.84,631397439
BEIS,Met Office,2022-12-13,FIXTURE & FITTINGS,CHIEF FINANCIAL OFFICER,SIGNS EXPRESS (EXETER),473940,80,631397439
BEIS,Met Office,2022-12-13,FIXTURE & FITTINGS,CHIEF FINANCIAL OFFICER,SIGNS EXPRESS (EXETER),473940,719.4,631397439
BEIS,Met Office,2022-12-13,06 ACCOMMODATION,CHIEF FINANCIAL OFFICER,South West Water Ltd,474496,944.94,236873674
BEIS,Met Office,2022-12-21,06 ACCOMMODATION,CHIEF FINANCIAL OFFICER,SP POWER SYSTEMS LIMITED,460530,-5123.23,595784569
BEIS,Met Office,2022-12-21,06 ACCOMMODATION,CHIEF FINANCIAL OFFICER,SP POWER SYSTEMS LIMITED,466783,5123.23,595784569
BEIS,Met Office,2022-12-12,06 ACCOMMODATION,CHIEF FINANCIAL OFFICER,ST MODWEN VENTURES LTD,474405,14.12,975081008
BEIS,Met Office,2022-12-08,06 ACCOMMODATION,CHIEF FINANCIAL OFFICER,ST MODWEN VENTURES LTD,474372,112.5,975081008
BEIS,Met Office,2022-12-14,06 ACCOMMODATION,CHIEF FINANCIAL OFFICER,ST MODWEN VENTURES LTD,474501,750,975081008
BEIS,Met Office,2022-12-13,11 SERVICES,CHIEF FINANCIAL OFFICER,SURE SOUTH ATLANTIC LTD,474482,770,-
BEIS,Met Office,2022-12-15,11 SERVICES,CHIEF FINANCIAL OFFICER,SURE SOUTH ATLANTIC LTD,474620,2124.8,NOVATREG
BEIS,Met Office,2022-12-14,11 SERVICES,CHIEF FINANCIAL OFFICER,SURE SOUTH ATLANTIC LTD,474481,4793,-
BEIS,Met Office,2022-12-15,11 SERVICES,CHIEF FINANCIAL OFFICER,SURE SOUTH ATLANTIC LTD (ST HELENA),474656,1650,30005
BEIS,Met Office,2022-12-21,11 SERVICES,CHIEF FINANCIAL OFFICER,SWISSCOM (SCHWEIZ) AG,474430,95.9,-
BEIS,Met Office,2022-12-13,11 SERVICES,CHIEF FINANCIAL OFFICER,TELEFONICA O2 UK LIMITED,474472,5239.15,778603785
BEIS,Met Office,2022-12-02,11 SERVICES,CHIEF FINANCIAL OFFICER,TENDER VICTORY,474144,3900,245 1698 90
BEIS,Met Office,2022-12-13,06 ACCOMMODATION,CHIEF FINANCIAL OFFICER,TOP RANK CLEANING SERVICES LTD,474406,914,-
BEIS,Met Office,2022-12-13,06 ACCOMMODATION,CHIEF FINANCIAL OFFICER,UK CENTRE FOR ECOLOGY & HYDROLOGY (UKCEH),474489,-492.16,336940192
BEIS,Met Office,2022-12-13,06 ACCOMMODATION,CHIEF FINANCIAL OFFICER,UK CENTRE FOR ECOLOGY & HYDROLOGY (UKCEH),474486,2772.65,336940192
BEIS,Met Office,2022-12-14,06 ACCOMMODATION,CHIEF FINANCIAL OFFICER,VICKERY HOLMAN,474551,4365.62,943875678
BEIS,Met Office,2022-12-20,06 ACCOMMODATION,CHIEF FINANCIAL OFFICER,WALMSLEY RESIDENTIAL LETTINGS LIMITED,474504,128.44,200012659
BEIS,Met Office,2022-12-14,06 ACCOMMODATION,CHIEF FINANCIAL OFFICER,WALMSLEY RESIDENTIAL LETTINGS LIMITED,474505,70046.44,200012659
BEIS,Met Office,2022-12-13,11 SERVICES,CHIEF FINANCIAL OFFICER,WOMBLE BOND DICKINSON (UK) LLP,474503,4968,GB123393627
BEIS,Met Office,2022-12-06,11 SERVICES,CHIEF FINANCIAL OFFICER,WOMBLE BOND DICKINSON (UK) LLP,474223,10656,GB123393627
BEIS,Met Office,2022-12-13,11 SERVICES,CHIEF FINANCIAL OFFICER,WOMBLE BOND DICKINSON (UK) LLP,474502,13500,GB123393627
BEIS,Met Office,2022-12-14,11 SERVICES,CHIEF FINANCIAL OFFICER,WT CONSULTANCY (SW) LTD,473945,8400,223 4662 25
BEIS,Met Office,2022-12-07,11 SERVICES,CHIEF FINANCIAL OFFICER,WT CONSULTANCY (SW) LTD,474224,8750,223 4662 25
BEIS,Met Office,2022-12-13,11 SERVICES,MARKETS,ACCELERATION EMARKETING,474475,3082.08,848940776
BEIS,Met Office,2022-12-06,11 SERVICES,MARKETS,ADOPSTAR,474225,1250,115036848
BEIS,Met Office,2022-12-20,12 INTERNATIONAL,MARKETS,APPLIED SATELLITE TECHNOLOGY SYSTEMS LTD,474734,34.23,720108683
BEIS,Met Office,2022-12-20,11 SERVICES,MARKETS,BJSS LIMITED,474617,10637.5,613295452
BEIS,Met Office,2022-12-13,11 SERVICES,MARKETS,CACI LTD,474487,224,380609841
BEIS,Met Office,2022-12-13,11 SERVICES,MARKETS,CACI LTD,474488,97358.26,380609841
BEIS,Met Office,2022-12-02,11 SERVICES,MARKETS,DBS FINANCE RECEIPTS CTS,474006,12982.21,888805068
BEIS,Met Office,2022-12-06,11 SERVICES,MARKETS,Esri (Uk) Ltd,474258,16115.33,787430791
BEIS,Met Office,2022-12-20,12 INTERNATIONAL,MARKETS,FOXSTONES TRAINING AND LEARNING,474612,2950,-
BEIS,Met Office,2022-12-01,06 ACCOMMODATION,MARKETS,HIGHLANDS & ISLANDS AIRPORTS LTD.,474104,300,945667772
BEIS,Met Office,2022-12-01,06 ACCOMMODATION,MARKETS,HIGHLANDS & ISLANDS AIRPORTS LTD.,474105,300,945667772
BEIS,Met Office,2022-12-01,06 ACCOMMODATION,MARKETS,HIGHLANDS & ISLANDS AIRPORTS LTD.,474107,300,945667772
BEIS,Met Office,2022-12-01,06 ACCOMMODATION,MARKETS,HIGHLANDS & ISLANDS AIRPORTS LTD.,474108,300,945667772
BEIS,Met Office,2022-12-21,11 SERVICES,MARKETS,"IBL SOFTWARE ENGINEERING, SPOL S.R.O.",24378,721.25,SK2020241883
BEIS,Met Office,2022-12-21,11 SERVICES,MARKETS,"IBL SOFTWARE ENGINEERING, SPOL S.R.O.",474327,8141.93,SK2020241883
BEIS,Met Office,2022-12-08,12 INTERNATIONAL,MARKETS,IDEMS INTERNATIONAL COMMUNITY INTEREST CO,474286,5000,-
BEIS,Met Office,2022-12-07,11 SERVICES,MARKETS,"INTELLOVATIONS, LLC",10866,1775.94,-
BEIS,Met Office,2022-12-21,11 SERVICES,MARKETS,INTERNATIONAL AIR TRANSPORT ASSOCIATION,10887,32704.29,107510570RT0001
BEIS,Met Office,2022-12-21,11 SERVICES,MARKETS,INTERNATIONAL CIVIL AVIATION ORGANIZATION,474709,24018,-
BEIS,Met Office,2022-12-21,11 SERVICES,MARKETS,IO ANALYTICS,474745,17500,-
BEIS,Met Office,2022-12-21,11 SERVICES,MARKETS,MAGPIE CREATIVE COMMUNICATIONS,474757,18000,117332539
BEIS,Met Office,2022-12-21,11 SERVICES,MARKETS,MAGPIE CREATIVE COMMUNICATIONS,474720,30000,117332539
BEIS,Met Office,2022-12-21,11 SERVICES,MARKETS,MERCATOR OCEAN INTERNATIONAL,24423,42635.04,-
BEIS,Met Office,2022-12-21,11 SERVICES,MARKETS,MONGODB LTD,474539,6220.8,IE9793087U
BEIS,Met Office,2022-12-07,12 INTERNATIONAL,MARKETS,MYACORN LTD,474226,15000,-
BEIS,Met Office,2022-12-01,11 SERVICES,MARKETS,OSBORNE CLARKE LLP,474097,2790,GB138187353
BEIS,Met Office,2022-12-21,11 SERVICES,MARKETS,REDACTED � PERSONAL DATA,474714,750,-
BEIS,Met Office,2022-12-21,11 SERVICES,MARKETS,REDACTED � PERSONAL DATA,474713,750,-
BEIS,Met Office,2022-12-21,11 SERVICES,MARKETS,REDACTED � PERSONAL DATA,474750,750,-
BEIS,Met Office,2022-12-07,12 INTERNATIONAL,MARKETS,REDACTED � PERSONAL DATA,10868,2891.07,-
BEIS,Met Office,2022-12-05,11 SERVICES,MARKETS,REDACTED � PERSONAL DATA,472590,4000,-
BEIS,Met Office,2022-12-21,11 SERVICES,MARKETS,SKIRESORT SERVICE INTERNATIONAL,24332,867.45,DE267023708
BEIS,Met Office,2022-12-12,03 STAFF COSTS T&S,MARKETS,SOLOMON & COMPANY (ST HELENA) PLC,474477,343,-
BEIS,Met Office,2022-12-08,11 SERVICES,MARKETS,SPOKE (INTERACTIVE) LTD,474346,700,840156451
BEIS,Met Office,2022-12-21,11 SERVICES,MARKETS,UK GBC,469345,-1840,919924779
BEIS,Met Office,2022-12-21,11 SERVICES,MARKETS,UK GBC,462506,1840,919924779
BEIS,Met Office,2022-12-05,11 SERVICES,MARKETS,ULTRA ELECTRONICS LTD NUCLEAR CONTROL SYSTEMS,474165,4926.81,123340754
BEIS,Met Office,2022-12-13,11 SERVICES,MARKETS,ULTRA ELECTRONICS LTD NUCLEAR CONTROL SYSTEMS,474407,18874,123340754
BEIS,Met Office,2022-12-21,11 SERVICES,MARKETS,UNITED KINGDOM RESEARCH AND INNOVATION (UKRI),474752,16520.19,GB287461957
BEIS,Met Office,2022-12-14,11 SERVICES,MARKETS,University Of Exeter,474549,1560,142047795
BEIS,Met Office,2022-12-07,11 SERVICES,MARKETS,WORLDPAY LTD,474245,25.95,991280207
BEIS,Met Office,2022-12-01,11 SERVICES,OFFICE OF THE CEO,BRYERS LLP,474103,369.14,609635917
BEIS,Met Office,2022-12-20,11 SERVICES,OFFICE OF THE CEO,DBS FINANCE RECEIPTS CTS,473946,170,888805068
BEIS,Met Office,2022-12-09,11 SERVICES,OFFICE OF THE CEO,MAZARS LLP,474404,5610,839835673
BEIS,Met Office,2022-12-01,11 SERVICES,OFFICE OF THE CEO,OSBORNE CLARKE LLP,474101,14000,GB138187353
BEIS,Met Office,2022-12-07,11 SERVICES,OFFICE OF THE CEO,TREEHOUSE PARTNERS LTD,474147,6645,118 8209 10
BEIS,Met Office,2022-12-21,PAYE AND VAT,OTHER,DHL INTERNATIONAL (UK) LTD,469658,-441.3,751812341
BEIS,Met Office,2022-12-13,CYCLESCHEME,OTHER,EDENRED UK (CYCLESCHEME),474546,4240.87,649 503 520
BEIS,Met Office,2022-12-13,11 SERVICES,OTHER,HOGAN LOVELLS INTERNATIONAL LLP,474432,2161.94,GB123371543
BEIS,Met Office,2022-12-21,TRADE CREDITORS,OTHER,NATWEST COMMERCIAL CARDS DIVISION,474701,189425.69,N/A
BEIS,Met Office,2022-12-07,11 SERVICES,PEOPLE,ACTIVE LEARNING TEAM LTD,474244,1400,-
BEIS,Met Office,2022-12-20,11 SERVICES,PEOPLE,ACTIVE LEARNING TEAM LTD,474655,2800,-
BEIS,Met Office,2022-12-20,11 SERVICES,PEOPLE,BITPOD LIMITED,474470,12378.85,124 9359 03
BEIS,Met Office,2022-12-06,08 SOFTWARE LICENCES,PEOPLE,CATALYST IT,474164,1635.83,978169262
BEIS,Met Office,2022-12-15,11 SERVICES,PEOPLE,CIVICA UK LIMITED,474632,7503.5,391171065
BEIS,Met Office,2022-12-09,13 MISCELLANEOUS,PEOPLE,EDENRED - CHILDCARE VOUCHERS,474436,1,649 503 520
BEIS,Met Office,2022-12-02,13 MISCELLANEOUS,PEOPLE,EDENRED - CHILDCARE VOUCHERS,474143,10090,649 503 520
BEIS,Met Office,2022-12-21,11 SERVICES,PEOPLE,FRANCIS CLARK LLP,474715,1500,855910212
BEIS,Met Office,2022-12-13,11 SERVICES,PEOPLE,GRANICUS FIRMSTEP LTD,474434,33750,792638878
BEIS,Met Office,2022-12-07,11 SERVICES,PEOPLE,HEALTH ASSURED LIMITED,474268,1120,927 5242 17
BEIS,Met Office,2022-12-09,13 MISCELLANEOUS,PEOPLE,HEALTH MANAGEMENT LTD,474330,570.45,792250621
BEIS,Met Office,2022-12-21,11 SERVICES,PEOPLE,JCA OCCUPATIONAL PSYCHOLOGISTS LIMITED,464517,-11460.91,655518420
BEIS,Met Office,2022-12-21,11 SERVICES,PEOPLE,JCA OCCUPATIONAL PSYCHOLOGISTS LIMITED,439101,11460.91,655518420
BEIS,Met Office,2022-12-20,04 CONTRACTORS,PEOPLE,MATRIX SCM LIMITED,474659,175616.82,249 5734 68
BEIS,Met Office,2022-12-09,04 CONTRACTORS,PEOPLE,MATRIX SCM LIMITED,474423,264062.05,249 5734 68
BEIS,Met Office,2022-12-02,04 CONTRACTORS,PEOPLE,MATRIX SCM LIMITED,474127,267676.97,249 5734 68
BEIS,Met Office,2022-12-20,11 SERVICES,PEOPLE,MOMENTUM INCORPORATED,474727,6400,598958541
BEIS,Met Office,2022-12-09,11 SERVICES,PEOPLE,MOMENTUM INCORPORATED,474381,6660,598958541
BEIS,Met Office,2022-12-20,11 SERVICES,PEOPLE,MOMENTUM INCORPORATED,474726,6660,598958541
BEIS,Met Office,2022-12-21,11 SERVICES,PEOPLE,OPTIMUS EDUCATION LTD,466580,-2590,311 6696 09
BEIS,Met Office,2022-12-21,11 SERVICES,PEOPLE,OPTIMUS EDUCATION LTD,441548,2590,311 6696 09
BEIS,Met Office,2022-12-14,11 SERVICES,PEOPLE,REDACTED � PERSONAL DATA,474548,825,143043312
BEIS,Met Office,2022-12-14,11 SERVICES,PEOPLE,REDACTED � PERSONAL DATA,474547,1305,143043312
BEIS,Met Office,2022-12-14,11 SERVICES,PEOPLE,REDACTED � PERSONAL DATA,474550,3752.5,143043312
BEIS,Met Office,2022-12-08,13 MISCELLANEOUS,PEOPLE,RESTORE RECORDS MANAGEMENT,474370,13.18,843 863011
BEIS,Met Office,2022-12-09,11 SERVICES,PEOPLE,RUNTIME COLLECTIVE LTD T/A BRANDWATCH,474285,6174,754750710
BEIS,Met Office,2022-12-06,11 SERVICES,PEOPLE,SKILLTEC LIMITED,469358,1295,909833105
BEIS,Met Office,2022-12-06,11 SERVICES,PEOPLE,SKILLTEC LIMITED,470672,1295,909833105
BEIS,Met Office,2022-12-06,11 SERVICES,PEOPLE,SKILLTEC LIMITED,470758,4300,909833105
BEIS,Met Office,2022-12-06,11 SERVICES,PEOPLE,SKILLTEC LIMITED,472639,6800,909833105
BEIS,Met Office,2022-12-08,11 SERVICES,PEOPLE,SOURCE COACHING CONSULTANCY,473113,-3115,170422048
BEIS,Met Office,2022-12-08,11 SERVICES,PEOPLE,SOURCE COACHING CONSULTANCY,474379,1340,170422048
BEIS,Met Office,2022-12-08,11 SERVICES,PEOPLE,SOURCE COACHING CONSULTANCY,472400,3115,170422048
BEIS,Met Office,2022-12-20,11 SERVICES,PEOPLE,THE STRENGTHS PEOPLE LTD,474554,2445,206868488
BEIS,Met Office,2022-12-20,11 SERVICES,PEOPLE,YOUGOV PLC,474162,4100,991228109
BEIS,Met Office,2022-12-09,11 SERVICES,PROGRAMMES,BAE SYSTEMS APPLIED INTELLIGENCE LIMITED,474047,1,GB641407169
BEIS,Met Office,2022-12-09,11 SERVICES,PROGRAMMES,BAE SYSTEMS APPLIED INTELLIGENCE LIMITED,474047,1,GB641407169
BEIS,Met Office,2022-12-09,11 SERVICES,PROGRAMMES,BAE SYSTEMS APPLIED INTELLIGENCE LIMITED,474047,2339.61,GB641407169
BEIS,Met Office,2022-12-01,11 SERVICES,PROGRAMMES,BAE SYSTEMS APPLIED INTELLIGENCE LIMITED,474088,8887.5,GB641407169
BEIS,Met Office,2022-12-01,11 SERVICES,PROGRAMMES,BAE SYSTEMS APPLIED INTELLIGENCE LIMITED,474091,10549.5,GB641407169
BEIS,Met Office,2022-12-01,11 SERVICES,PROGRAMMES,BAE SYSTEMS APPLIED INTELLIGENCE LIMITED,474087,10820,GB641407169
BEIS,Met Office,2022-12-05,11 SERVICES,PROGRAMMES,BAE SYSTEMS APPLIED INTELLIGENCE LIMITED,474086,12540,GB641407169
BEIS,Met Office,2022-12-01,11 SERVICES,PROGRAMMES,BAE SYSTEMS APPLIED INTELLIGENCE LIMITED,474089,13200,GB641407169
BEIS,Met Office,2022-12-05,11 SERVICES,PROGRAMMES,BAE SYSTEMS APPLIED INTELLIGENCE LIMITED,474086,16863.5,GB641407169
BEIS,Met Office,2022-12-05,11 SERVICES,PROGRAMMES,BAE SYSTEMS APPLIED INTELLIGENCE LIMITED,474086,17353,GB641407169
BEIS,Met Office,2022-12-05,11 SERVICES,PROGRAMMES,BAE SYSTEMS APPLIED INTELLIGENCE LIMITED,474086,17353,GB641407169
BEIS,Met Office,2022-12-05,11 SERVICES,PROGRAMMES,BAE SYSTEMS APPLIED INTELLIGENCE LIMITED,474086,17822,GB641407169
BEIS,Met Office,2022-12-05,11 SERVICES,PROGRAMMES,BAE SYSTEMS APPLIED INTELLIGENCE LIMITED,474086,18408.25,GB641407169
BEIS,Met Office,2022-12-05,11 SERVICES,PROGRAMMES,BAE SYSTEMS APPLIED INTELLIGENCE LIMITED,474086,18760,GB641407169
BEIS,Met Office,2022-12-01,11 SERVICES,PROGRAMMES,BAE SYSTEMS APPLIED INTELLIGENCE LIMITED,474090,18760,GB641407169
BEIS,Met Office,2022-12-05,11 SERVICES,PROGRAMMES,BAE SYSTEMS APPLIED INTELLIGENCE LIMITED,474086,20788.63,GB641407169
BEIS,Met Office,2022-12-05,11 SERVICES,PROGRAMMES,BAE SYSTEMS APPLIED INTELLIGENCE LIMITED,474086,22097,GB641407169
BEIS,Met Office,2022-12-05,11 SERVICES,PROGRAMMES,BAE SYSTEMS APPLIED INTELLIGENCE LIMITED,474086,22969.25,GB641407169
BEIS,Met Office,2022-12-05,11 SERVICES,PROGRAMMES,BITPOD LIMITED,474096,4907.13,124 9359 03
BEIS,Met Office,2022-12-20,11 SERVICES,PROGRAMMES,BJSS LIMITED,474618,13750,613295452
BEIS,Met Office,2022-12-20,11 SERVICES,PROGRAMMES,BJSS LIMITED,474621,18600,613295452
BEIS,Met Office,2022-12-20,INFORMATION TECHNOLOGY,PROGRAMMES,Campbell Scientific Ltd,473875,201.4,428453933
BEIS,Met Office,2022-12-20,INFORMATION TECHNOLOGY,PROGRAMMES,Campbell Scientific Ltd,473875,1355.6,428453933
BEIS,Met Office,2022-12-20,INFORMATION TECHNOLOGY,PROGRAMMES,Campbell Scientific Ltd,473875,1868.4,428453933
BEIS,Met Office,2022-12-20,INFORMATION TECHNOLOGY,PROGRAMMES,Campbell Scientific Ltd,473876,2937.6,428453933
BEIS,Met Office,2022-12-15,11 SERVICES,PROGRAMMES,Cgi It Uk Limited,474129,21842.46,232615194
BEIS,Met Office,2022-12-15,11 SERVICES,PROGRAMMES,Cgi It Uk Limited,474129,36074,232615194
BEIS,Met Office,2022-12-06,08 SOFTWARE LICENCES,PROGRAMMES,CLEARVISION (CM) LIMITED,473997,4349.7,881364801
BEIS,Met Office,2022-12-21,13 MISCELLANEOUS,PROGRAMMES,ELSEVIER B.V.,474149,4567.18,NL00503301980
BEIS,Met Office,2022-12-13,11 SERVICES,PROGRAMMES,Esri (Uk) Ltd,474425,4886.27,787430791
BEIS,Met Office,2022-12-07,11 SERVICES,PROGRAMMES,FUNDACAO ARTHUR BERNARDES - FUNARBE,474214,184101.64,-
BEIS,Met Office,2022-12-07,11 SERVICES,PROGRAMMES,FUNDACAO ARTHUR BERNARDES - FUNARBE,474215,189252.32,-
BEIS,Met Office,2022-12-07,11 SERVICES,PROGRAMMES,FUNDACAO ARTHUR BERNARDES - FUNARBE,474215,225208.06,-
BEIS,Met Office,2022-12-09,11 SERVICES,PROGRAMMES,HOGAN LOVELLS INTERNATIONAL LLP,474433,27793.43,GB123371543
BEIS,Met Office,2022-12-21,11 SERVICES,PROGRAMMES,"IBL SOFTWARE ENGINEERING, SPOL S.R.O.",474174,252749.72,SK2020241883
BEIS,Met Office,2022-12-13,13 MISCELLANEOUS,PROGRAMMES,JOHN WILEY & SONS LTD,474492,1353.72,376766987
BEIS,Met Office,2022-12-21,11 SERVICES,PROGRAMMES,"K F LEWIN CONSULTING, LLC",10867,8985.42,-
BEIS,Met Office,2022-12-13,11 SERVICES,PROGRAMMES,LAFOSSE ASSOCIATES,474424,16500,GB 360026537
BEIS,Met Office,2022-12-20,11 SERVICES,PROGRAMMES,MADE TECH,474537,2100,938565184
BEIS,Met Office,2022-12-12,11 SERVICES,PROGRAMMES,MADE TECH,474390,98037.5,938565184
BEIS,Met Office,2022-12-01,11 SERVICES,PROGRAMMES,Microsoft Ltd,473917,11629459,724594615
BEIS,Met Office,2022-12-20,06 ACCOMMODATION,PROGRAMMES,POWER NI ENERGY LTD,474753,728.69,617518142
BEIS,Met Office,2022-12-06,11 SERVICES,PROGRAMMES,PRESTIGE NETWORK LTD,474146,1439,529 1145 55
BEIS,Met Office,2022-12-14,11 SERVICES,PROGRAMMES,PRESTIGE NETWORK LTD,474388,4668,529 1145 55
BEIS,Met Office,2022-12-15,11 SERVICES,PROGRAMMES,PRISM INFOSEC LTD,474626,450,GB 879 7957 24
BEIS,Met Office,2022-12-02,11 SERVICES,PROGRAMMES,PRISM INFOSEC LTD,474100,3600,GB 879 7957 24
BEIS,Met Office,2022-12-06,11 SERVICES,PROGRAMMES,ROWE IT LTD,474287,16125,924964394
BEIS,Met Office,2022-12-20,11 SERVICES,PROGRAMMES,ROWE IT LTD,474755,121543.75,924964394
BEIS,Met Office,2022-12-08,11 SERVICES,PROGRAMMES,ROWE IT LTD,474324,210681.26,924964394
BEIS,Met Office,2022-12-09,11 SERVICES,PROGRAMMES,SPECIALIST COMPUTER CENTRES,474393,9499.53,313651680
BEIS,Met Office,2022-12-20,13 MISCELLANEOUS,PROGRAMMES,SPRINGER NATURE LIMITED,474718,2712.8,199440621
BEIS,Met Office,2022-12-21,11 SERVICES,PROGRAMMES,UCAR INCOMING PAYMENTS,10859,1815.6,-
BEIS,Met Office,2022-12-14,11 SERVICES,PROGRAMMES,UCAR INCOMING PAYMENTS,10830,18264.25,-
BEIS,Met Office,2022-12-21,11 SERVICES,PROGRAMMES,University Of Reading,471411,-17802.19,200012659
BEIS,Met Office,2022-12-21,11 SERVICES,PROGRAMMES,University Of Reading,471052,17802.19,200012659
BEIS,Met Office,2022-12-20,11 SERVICES,PROGRAMMES,WARWICK ECONOMICS & DEVELOPMENT LTD.,474728,11250,116732721
BEIS,Met Office,2022-12-02,11 SERVICES,PROGRAMMES,WARWICK ECONOMICS & DEVELOPMENT LTD.,474166,17900,116732721
BEIS,Met Office,2022-12-07,13 MISCELLANEOUS,SCIENCE,Bangor University,474323,1000,GB728885674
BEIS,Met Office,2022-12-07,13 MISCELLANEOUS,SCIENCE,ECKERT & ZIEGLER ENVIRONMENTAL SERVICES LTD,473550,2655,GB161710926
BEIS,Met Office,2022-12-21,13 MISCELLANEOUS,SCIENCE,ELSEVIER B.V.,474149,41104.62,NL00503301980
BEIS,Met Office,2022-12-15,08 SOFTWARE LICENCES,SCIENCE,Grey Matter Ltd,472752,1409.58,384904621
BEIS,Met Office,2022-12-13,13 MISCELLANEOUS,SCIENCE,JOHN WILEY & SONS LTD,474492,12183.46,376766987
BEIS,Met Office,2022-12-20,13 MISCELLANEOUS,SCIENCE,SPRINGER NATURE LIMITED,474718,24414.2,199440621
BEIS,Met Office,2022-12-20,11 SERVICES,SCIENCE,STAGE ENGAGE LTD,473697,5148.85,GB120210593
BEIS,Met Office,2022-12-21,11 SERVICES,SCIENCE,University Of Bristol,473900,-150000,991261800
BEIS,Met Office,2022-12-21,11 SERVICES,SCIENCE,University Of Bristol,473447,150000,991261800
BEIS,Met Office,2022-12-09,13 MISCELLANEOUS,SCIENCE,University Of East Anglia,474368,333.33,595183505
BEIS,Met Office,2022-12-14,13 MISCELLANEOUS,SCIENCE,University Of Exeter,474176,-1000,142047795
BEIS,Met Office,2022-12-14,13 MISCELLANEOUS,SCIENCE,University Of Exeter,472647,1000,142047795
BEIS,Met Office,2022-12-13,04 CONTRACTORS,SERVICES,AFBI,474491,50,252677738
BEIS,Met Office,2022-12-21,STOCK,SERVICES,Agencia Estatal De Meteorologia,24401,17254.74,-
BEIS,Met Office,2022-12-09,03 STAFF COSTS T&S,SERVICES,AIRPORT CAR RENTALS LTD,474435,320,-
BEIS,Met Office,2022-12-20,11 SERVICES,SERVICES,APPLIED SATELLITE TECHNOLOGY SYSTEMS LTD,472759,37.08,720108683
BEIS,Met Office,2022-12-20,11 SERVICES,SERVICES,APPLIED SATELLITE TECHNOLOGY SYSTEMS LTD,474737,68.46,720108683
BEIS,Met Office,2022-12-20,11 SERVICES,SERVICES,APPLIED SATELLITE TECHNOLOGY SYSTEMS LTD,474744,68.46,720108683
BEIS,Met Office,2022-12-20,11 SERVICES,SERVICES,APPLIED SATELLITE TECHNOLOGY SYSTEMS LTD,472760,74.17,720108683
BEIS,Met Office,2022-12-20,11 SERVICES,SERVICES,APPLIED SATELLITE TECHNOLOGY SYSTEMS LTD,472761,91.74,720108683
BEIS,Met Office,2022-12-20,11 SERVICES,SERVICES,APPLIED SATELLITE TECHNOLOGY SYSTEMS LTD,474735,137.52,720108683
BEIS,Met Office,2022-12-21,11 SERVICES,SERVICES,APPLIED SATELLITE TECHNOLOGY SYSTEMS LTD,474743,298.62,720108683
BEIS,Met Office,2022-12-20,11 SERVICES,SERVICES,APPLIED SATELLITE TECHNOLOGY SYSTEMS LTD,474736,304.58,720108683
BEIS,Met Office,2022-12-20,11 SERVICES,SERVICES,APPLIED SATELLITE TECHNOLOGY SYSTEMS LTD,474740,2246.72,720108683
BEIS,Met Office,2022-12-02,11 SERVICES,SERVICES,APPLIED SATELLITE TECHNOLOGY SYSTEMS LTD,473806,2462.06,720108683
BEIS,Met Office,2022-12-20,11 SERVICES,SERVICES,APPLIED SATELLITE TECHNOLOGY SYSTEMS LTD,474742,2646.13,720108683
BEIS,Met Office,2022-12-20,11 SERVICES,SERVICES,APPLIED SATELLITE TECHNOLOGY SYSTEMS LTD,474738,7034.1,720108683
BEIS,Met Office,2022-12-14,11 SERVICES,SERVICES,Boc Ltd,474467,-114.23,226556555
BEIS,Met Office,2022-12-14,11 SERVICES,SERVICES,Boc Ltd,474099,-14.4,226556555
BEIS,Met Office,2022-12-14,11 SERVICES,SERVICES,Boc Ltd,474161,12466.58,226556555
BEIS,Met Office,2022-12-13,11 SERVICES,SERVICES,CLOUDREACH EUROPE LIMITED,474367,7300,978187168
BEIS,Met Office,2022-12-07,11 SERVICES,SERVICES,COLLECTE LOCALISATION SATELLITES (C.L.S.),24337,857.85,FR95338034390
BEIS,Met Office,2022-12-07,11 SERVICES,SERVICES,COLLECTE LOCALISATION SATELLITES (C.L.S.),24336,4767.49,FR95338034390
BEIS,Met Office,2022-12-07,11 SERVICES,SERVICES,COLLECTE LOCALISATION SATELLITES (C.L.S.),24338,10948.19,FR95338034390
BEIS,Met Office,2022-12-14,10 EQUIPMENT MAINTENANCE,SERVICES,DEUTSCHE WINDGUARD WIND TUNNEL SERVICES GMBH,24409,10.78,DE225152482
BEIS,Met Office,2022-12-14,10 EQUIPMENT MAINTENANCE,SERVICES,DEUTSCHE WINDGUARD WIND TUNNEL SERVICES GMBH,24409,17.25,DE225152482
BEIS,Met Office,2022-12-14,10 EQUIPMENT MAINTENANCE,SERVICES,DEUTSCHE WINDGUARD WIND TUNNEL SERVICES GMBH,24409,43.14,DE225152482
BEIS,Met Office,2022-12-14,10 EQUIPMENT MAINTENANCE,SERVICES,DEUTSCHE WINDGUARD WIND TUNNEL SERVICES GMBH,24409,3261.15,DE225152482
BEIS,Met Office,2022-12-21,11 SERVICES,SERVICES,DHL INTERNATIONAL (UK) LTD,469658,-11.03,751812341
BEIS,Met Office,2022-12-21,11 SERVICES,SERVICES,DHL INTERNATIONAL (UK) LTD,465469,11.03,751812341
BEIS,Met Office,2022-12-20,11 SERVICES,SERVICES,DOT SOFTWARE LTD,474615,1141,701022805
BEIS,Met Office,2022-12-20,11 SERVICES,SERVICES,DOT SOFTWARE LTD,474615,2400,701022805
BEIS,Met Office,2022-12-20,11 SERVICES,SERVICES,DOT SOFTWARE LTD,474615,5040,701022805
BEIS,Met Office,2022-12-21,13 MISCELLANEOUS,SERVICES,ELSEVIER B.V.,474149,45671.8,NL00503301980
BEIS,Met Office,2022-12-14,03 STAFF COSTS T&S,SERVICES,FALKLAND ISLAND COMPANY LTD,474609,700,N/A
BEIS,Met Office,2022-12-14,03 STAFF COSTS T&S,SERVICES,FALKLAND ISLAND COMPANY LTD,474610,700,N/A
BEIS,Met Office,2022-12-14,03 STAFF COSTS T&S,SERVICES,FALKLAND ISLAND COMPANY LTD,474611,700,N/A
BEIS,Met Office,2022-12-21,11 SERVICES,SERVICES,HITACHI CAPITAL VEHICLE SOLUTIONS,472960,-35.08,GB 823 8248 22
BEIS,Met Office,2022-12-21,11 SERVICES,SERVICES,HITACHI CAPITAL VEHICLE SOLUTIONS,472000,35.08,GB 823 8248 22
BEIS,Met Office,2022-12-06,13 MISCELLANEOUS,SERVICES,IMAGETEK SYSTEMS LTD,474152,3723.59,GB586331424
BEIS,Met Office,2022-12-14,04 CONTRACTORS,SERVICES,INSTITUTO PORTUGUES DO MAR A DA ATMOSFERA,24416,15863.09,-
BEIS,Met Office,2022-12-02,07 EQUIPMENT,SERVICES,J DARBYSHIRE & SON LTD,474045,14,153470085
BEIS,Met Office,2022-12-02,07 EQUIPMENT,SERVICES,J DARBYSHIRE & SON LTD,474045,1116,153470085
BEIS,Met Office,2022-12-13,13 MISCELLANEOUS,SERVICES,JOHN WILEY & SONS LTD,474492,13537.18,376766987
BEIS,Met Office,2022-12-21,07 EQUIPMENT,SERVICES,LEMO (UK) LTD,474719,15,193269240
BEIS,Met Office,2022-12-21,07 EQUIPMENT,SERVICES,LEMO (UK) LTD,474719,150,193269240
BEIS,Met Office,2022-12-21,07 EQUIPMENT,SERVICES,LEMO (UK) LTD,474719,1905,193269240
BEIS,Met Office,2022-12-06,06 ACCOMMODATION,SERVICES,LINCOLN POLYTHENE / HOBSON HOLDINGS,474220,270,267249279
BEIS,Met Office,2022-12-20,11 SERVICES,SERVICES,MADE TECH,474538,995,938565184
BEIS,Met Office,2022-12-12,11 SERVICES,SERVICES,MADE TECH,474392,4750,938565184
BEIS,Met Office,2022-12-12,11 SERVICES,SERVICES,MADE TECH,474391,24362.5,938565184
BEIS,Met Office,2022-12-12,11 SERVICES,SERVICES,MADE TECH,474389,220162.5,938565184
BEIS,Met Office,2022-12-21,07 EQUIPMENT,SERVICES,METOCEAN TELEMATICS LTD,10872,188.32,-
BEIS,Met Office,2022-12-15,13 MISCELLANEOUS,SERVICES,Munro Instruments Ltd,474654,29,977793930
BEIS,Met Office,2022-12-15,10 EQUIPMENT MAINTENANCE,SERVICES,Munro Instruments Ltd,474654,1308.47,977793930
BEIS,Met Office,2022-12-20,COMPUTER SOFTWARE,SERVICES,NOMENSA,474688,866.61,GB771727411
BEIS,Met Office,2022-12-21,11 SERVICES,SERVICES,NSSL GLOBAL LTD,473892,-20387.53,725151948
BEIS,Met Office,2022-12-14,11 SERVICES,SERVICES,NSSL GLOBAL LTD,10854,59.33,725151948
BEIS,Met Office,2022-12-14,11 SERVICES,SERVICES,NSSL GLOBAL LTD,10853,76.28,725151948
BEIS,Met Office,2022-12-21,11 SERVICES,SERVICES,NSSL GLOBAL LTD,474636,20387.53,725151948
BEIS,Met Office,2022-12-21,STOCK,SERVICES,SCIENCE PUMP CORPORATION,10861,0,NOVAT
BEIS,Met Office,2022-12-21,TRADE CREDITORS,SERVICES,SCIENCE PUMP CORPORATION,10861,4260.18,NOVAT
BEIS,Met Office,2022-12-21,11 SERVICES,SERVICES,Smhi,24411,8972.46,SE202100069601
BEIS,Met Office,2022-12-02,11 SERVICES,SERVICES,SOFTWIRE TECHNOLOGY LIMITED,474158,4200,752 1253 57
BEIS,Met Office,2022-12-02,07 EQUIPMENT,SERVICES,SONARDYNE INTERNATIONAL LIMITED,474112,600,GB 591 6950 04
BEIS,Met Office,2022-12-21,08 SOFTWARE LICENCES,SERVICES,SOUTRON GLOBAL INC,474671,15318,863868129
BEIS,Met Office,2022-12-20,11 SERVICES,SERVICES,Trinity House,474668,1862.1,243120414
BEIS,Met Office,2022-12-20,11 SERVICES,SERVICES,University Of Exeter,474666,4633.2,142047795
BEIS,Met Office,2022-12-02,11 SERVICES,SERVICES,University Of Leicester,474098,4633.2,916583894
BEIS,Met Office,2022-12-07,11 SERVICES,TECHNOLOGY AND CIO,AARDLING,24402,11862.63,BE0718999533
BEIS,Met Office,2022-12-08,11 SERVICES,TECHNOLOGY AND CIO,AKAMAI TECHNOLOGIES LTD,474342,4921.28,745091237
BEIS,Met Office,2022-12-08,11 SERVICES,TECHNOLOGY AND CIO,AKAMAI TECHNOLOGIES LTD,474342,25836.75,745091237
BEIS,Met Office,2022-12-21,11 SERVICES,TECHNOLOGY AND CIO,AMAZON WEB SERVICES EMEA SARL,10880,1387.77,GB 283644382
BEIS,Met Office,2022-12-21,11 SERVICES,TECHNOLOGY AND CIO,AMAZON WEB SERVICES EMEA SARL,10881,259329.29,GB 283644382
BEIS,Met Office,2022-12-21,11 SERVICES,TECHNOLOGY AND CIO,AMAZON WEB SERVICES INC.,10878,0.47,N/A
BEIS,Met Office,2022-12-07,11 SERVICES,TECHNOLOGY AND CIO,AMAZON WEB SERVICES INC.,10852,22264.47,N/A
BEIS,Met Office,2022-12-21,11 SERVICES,TECHNOLOGY AND CIO,AMAZON WEB SERVICES INC.,10870,22421.45,N/A
BEIS,Met Office,2022-12-20,11 SERVICES,TECHNOLOGY AND CIO,BAE SYSTEMS APPLIED INTELLIGENCE LIMITED,474179,-9647.1,GB641407169
BEIS,Met Office,2022-12-06,11 SERVICES,TECHNOLOGY AND CIO,BAE SYSTEMS APPLIED INTELLIGENCE LIMITED,474132,1263.5,GB641407169
BEIS,Met Office,2022-12-08,11 SERVICES,TECHNOLOGY AND CIO,BAE SYSTEMS APPLIED INTELLIGENCE LIMITED,474233,1980,GB641407169
BEIS,Met Office,2022-12-06,11 SERVICES,TECHNOLOGY AND CIO,BAE SYSTEMS APPLIED INTELLIGENCE LIMITED,474193,3300,GB641407169
BEIS,Met Office,2022-12-12,11 SERVICES,TECHNOLOGY AND CIO,BAE SYSTEMS APPLIED INTELLIGENCE LIMITED,474281,3300,GB641407169
BEIS,Met Office,2022-12-05,11 SERVICES,TECHNOLOGY AND CIO,BAE SYSTEMS APPLIED INTELLIGENCE LIMITED,474092,4338.25,GB641407169
BEIS,Met Office,2022-12-06,11 SERVICES,TECHNOLOGY AND CIO,BAE SYSTEMS APPLIED INTELLIGENCE LIMITED,474195,6331.5,GB641407169
BEIS,Met Office,2022-12-08,11 SERVICES,TECHNOLOGY AND CIO,BAE SYSTEMS APPLIED INTELLIGENCE LIMITED,474235,6750,GB641407169
BEIS,Met Office,2022-12-06,11 SERVICES,TECHNOLOGY AND CIO,BAE SYSTEMS APPLIED INTELLIGENCE LIMITED,474134,7260,GB641407169
BEIS,Met Office,2022-12-06,11 SERVICES,TECHNOLOGY AND CIO,BAE SYSTEMS APPLIED INTELLIGENCE LIMITED,474139,7590,GB641407169
BEIS,Met Office,2022-12-12,11 SERVICES,TECHNOLOGY AND CIO,BAE SYSTEMS APPLIED INTELLIGENCE LIMITED,474276,7650,GB641407169
BEIS,Met Office,2022-12-06,11 SERVICES,TECHNOLOGY AND CIO,BAE SYSTEMS APPLIED INTELLIGENCE LIMITED,474136,7875,GB641407169
BEIS,Met Office,2022-12-08,11 SERVICES,TECHNOLOGY AND CIO,BAE SYSTEMS APPLIED INTELLIGENCE LIMITED,474234,7920,GB641407169
BEIS,Met Office,2022-12-06,11 SERVICES,TECHNOLOGY AND CIO,BAE SYSTEMS APPLIED INTELLIGENCE LIMITED,474135,8207.5,GB641407169
BEIS,Met Office,2022-12-08,11 SERVICES,TECHNOLOGY AND CIO,BAE SYSTEMS APPLIED INTELLIGENCE LIMITED,474232,8442,GB641407169
BEIS,Met Office,2022-12-06,11 SERVICES,TECHNOLOGY AND CIO,BAE SYSTEMS APPLIED INTELLIGENCE LIMITED,474189,8550,GB641407169
BEIS,Met Office,2022-12-06,11 SERVICES,TECHNOLOGY AND CIO,BAE SYSTEMS APPLIED INTELLIGENCE LIMITED,474191,8656,GB641407169
BEIS,Met Office,2022-12-12,11 SERVICES,TECHNOLOGY AND CIO,BAE SYSTEMS APPLIED INTELLIGENCE LIMITED,474282,8775,GB641407169
BEIS,Met Office,2022-12-12,11 SERVICES,TECHNOLOGY AND CIO,BAE SYSTEMS APPLIED INTELLIGENCE LIMITED,474283,8831.25,GB641407169
BEIS,Met Office,2022-12-12,11 SERVICES,TECHNOLOGY AND CIO,BAE SYSTEMS APPLIED INTELLIGENCE LIMITED,474275,9000,GB641407169
BEIS,Met Office,2022-12-12,11 SERVICES,TECHNOLOGY AND CIO,BAE SYSTEMS APPLIED INTELLIGENCE LIMITED,474279,9240,GB641407169
BEIS,Met Office,2022-12-12,11 SERVICES,TECHNOLOGY AND CIO,BAE SYSTEMS APPLIED INTELLIGENCE LIMITED,474280,9240,GB641407169
BEIS,Met Office,2022-12-06,11 SERVICES,TECHNOLOGY AND CIO,BAE SYSTEMS APPLIED INTELLIGENCE LIMITED,474194,9380,GB641407169
BEIS,Met Office,2022-12-08,11 SERVICES,TECHNOLOGY AND CIO,BAE SYSTEMS APPLIED INTELLIGENCE LIMITED,474241,9380,GB641407169
BEIS,Met Office,2022-12-20,11 SERVICES,TECHNOLOGY AND CIO,BAE SYSTEMS APPLIED INTELLIGENCE LIMITED,473879,9647.1,GB641407169
BEIS,Met Office,2022-12-12,11 SERVICES,TECHNOLOGY AND CIO,BAE SYSTEMS APPLIED INTELLIGENCE LIMITED,474278,9738,GB641407169
BEIS,Met Office,2022-12-20,11 SERVICES,TECHNOLOGY AND CIO,BAE SYSTEMS APPLIED INTELLIGENCE LIMITED,474690,10279,GB641407169
BEIS,Met Office,2022-12-06,11 SERVICES,TECHNOLOGY AND CIO,BAE SYSTEMS APPLIED INTELLIGENCE LIMITED,474133,10467,GB641407169
BEIS,Met Office,2022-12-12,11 SERVICES,TECHNOLOGY AND CIO,BAE SYSTEMS APPLIED INTELLIGENCE LIMITED,474274,10560,GB641407169
BEIS,Met Office,2022-12-06,11 SERVICES,TECHNOLOGY AND CIO,BAE SYSTEMS APPLIED INTELLIGENCE LIMITED,474137,10820,GB641407169
BEIS,Met Office,2022-12-06,11 SERVICES,TECHNOLOGY AND CIO,BAE SYSTEMS APPLIED INTELLIGENCE LIMITED,474192,10820,GB641407169
BEIS,Met Office,2022-12-06,11 SERVICES,TECHNOLOGY AND CIO,BAE SYSTEMS APPLIED INTELLIGENCE LIMITED,474154,11220,GB641407169
BEIS,Met Office,2022-12-06,11 SERVICES,TECHNOLOGY AND CIO,BAE SYSTEMS APPLIED INTELLIGENCE LIMITED,474140,11715,GB641407169
BEIS,Met Office,2022-12-06,11 SERVICES,TECHNOLOGY AND CIO,BAE SYSTEMS APPLIED INTELLIGENCE LIMITED,474138,12540,GB641407169
BEIS,Met Office,2022-12-20,11 SERVICES,TECHNOLOGY AND CIO,BAE SYSTEMS APPLIED INTELLIGENCE LIMITED,474284,12540,GB641407169
BEIS,Met Office,2022-12-06,11 SERVICES,TECHNOLOGY AND CIO,BAE SYSTEMS APPLIED INTELLIGENCE LIMITED,474188,12622.5,GB641407169
BEIS,Met Office,2022-12-06,11 SERVICES,TECHNOLOGY AND CIO,BAE SYSTEMS APPLIED INTELLIGENCE LIMITED,474141,13199.99,GB641407169
BEIS,Met Office,2022-12-06,11 SERVICES,TECHNOLOGY AND CIO,BAE SYSTEMS APPLIED INTELLIGENCE LIMITED,474187,13200,GB641407169
BEIS,Met Office,2022-12-08,11 SERVICES,TECHNOLOGY AND CIO,BAE SYSTEMS APPLIED INTELLIGENCE LIMITED,474240,13366.5,GB641407169
BEIS,Met Office,2022-12-06,11 SERVICES,TECHNOLOGY AND CIO,BAE SYSTEMS APPLIED INTELLIGENCE LIMITED,474190,15300,GB641407169
BEIS,Met Office,2022-12-08,11 SERVICES,TECHNOLOGY AND CIO,BAE SYSTEMS APPLIED INTELLIGENCE LIMITED,474237,15477,GB641407169
BEIS,Met Office,2022-12-08,11 SERVICES,TECHNOLOGY AND CIO,BAE SYSTEMS APPLIED INTELLIGENCE LIMITED,474236,17353,GB641407169
BEIS,Met Office,2022-12-08,11 SERVICES,TECHNOLOGY AND CIO,BAE SYSTEMS APPLIED INTELLIGENCE LIMITED,474239,17822,GB641407169
BEIS,Met Office,2022-12-08,11 SERVICES,TECHNOLOGY AND CIO,BAE SYSTEMS APPLIED INTELLIGENCE LIMITED,474242,17822,GB641407169
BEIS,Met Office,2022-12-08,11 SERVICES,TECHNOLOGY AND CIO,BAE SYSTEMS APPLIED INTELLIGENCE LIMITED,474238,18760,GB641407169
BEIS,Met Office,2022-12-15,11 SERVICES,TECHNOLOGY AND CIO,BJSS LIMITED,474557,138138,613295452
BEIS,Met Office,2022-12-01,08 SOFTWARE LICENCES,TECHNOLOGY AND CIO,BOXXE,474113,1134.98,734245248
BEIS,Met Office,2022-12-13,08 SOFTWARE LICENCES,TECHNOLOGY AND CIO,BOXXE,474466,1643.13,734245248
BEIS,Met Office,2022-12-01,08 SOFTWARE LICENCES,TECHNOLOGY AND CIO,BOXXE,474113,23865,734245248
BEIS,Met Office,2022-12-02,08 SOFTWARE LICENCES,TECHNOLOGY AND CIO,CABINET OFFICE - COF LEAD ACCOUNT,474004,425,-
BEIS,Met Office,2022-12-02,10 EQUIPMENT MAINTENANCE,TECHNOLOGY AND CIO,CABINET OFFICE - COF LEAD ACCOUNT,474004,500,-
BEIS,Met Office,2022-12-02,10 EQUIPMENT MAINTENANCE,TECHNOLOGY AND CIO,CABINET OFFICE - COF LEAD ACCOUNT,474004,600,-
BEIS,Met Office,2022-12-02,07 EQUIPMENT,TECHNOLOGY AND CIO,CABINET OFFICE - COF LEAD ACCOUNT,474004,2500,-
BEIS,Met Office,2022-12-02,07 EQUIPMENT,TECHNOLOGY AND CIO,CABINET OFFICE - COF LEAD ACCOUNT,474004,2600,-
BEIS,Met Office,2022-12-02,08 SOFTWARE LICENCES,TECHNOLOGY AND CIO,CABINET OFFICE - COF LEAD ACCOUNT,474004,7710,-
BEIS,Met Office,2022-12-02,11 SERVICES,TECHNOLOGY AND CIO,CABINET OFFICE - COF LEAD ACCOUNT,474004,16000,-
BEIS,Met Office,2022-12-02,07 EQUIPMENT,TECHNOLOGY AND CIO,CABINET OFFICE - COF LEAD ACCOUNT,474004,19700,-
BEIS,Met Office,2022-12-06,07 EQUIPMENT,TECHNOLOGY AND CIO,CCS MEDIA LIMITED,473219,126543,261 0180 47
BEIS,Met Office,2022-12-06,08 SOFTWARE LICENCES,TECHNOLOGY AND CIO,CLEARVISION (CM) LIMITED,473997,31951.35,881364801
BEIS,Met Office,2022-12-06,08 SOFTWARE LICENCES,TECHNOLOGY AND CIO,CLEARVISION (CM) LIMITED,473997,76855.95,881364801
BEIS,Met Office,2022-12-12,11 SERVICES,TECHNOLOGY AND CIO,CLOUDREACH EUROPE LIMITED,474366,5150,978187168
BEIS,Met Office,2022-12-02,07 EQUIPMENT,TECHNOLOGY AND CIO,COMPUTACENTER (UK) LTD,474046,7480.5,490334648
BEIS,Met Office,2022-12-13,INFORMATION TECHNOLOGY,TECHNOLOGY AND CIO,COMPUTACENTER (UK) LTD,474480,19948.6,490334648
BEIS,Met Office,2022-12-02,08 SOFTWARE LICENCES,TECHNOLOGY AND CIO,COMPUTACENTER (UK) LTD,474128,153640,490334648
BEIS,Met Office,2022-12-06,11 SERVICES,TECHNOLOGY AND CIO,FLYFORM LTD,474227,6965,237333808
BEIS,Met Office,2022-12-21,08 SOFTWARE LICENCES,TECHNOLOGY AND CIO,FORGEROCK LTD,474751,24740.74,988863532
BEIS,Met Office,2022-12-21,08 SOFTWARE LICENCES,TECHNOLOGY AND CIO,FORGEROCK LTD,474751,87845.08,988863532
BEIS,Met Office,2022-12-20,08 SOFTWARE LICENCES,TECHNOLOGY AND CIO,GOOGLE IRELAND LTD,474689,58.63,6388047V
BEIS,Met Office,2022-12-15,08 SOFTWARE LICENCES,TECHNOLOGY AND CIO,Grey Matter Ltd,472752,1582.48,384904621
BEIS,Met Office,2022-12-15,08 SOFTWARE LICENCES,TECHNOLOGY AND CIO,Grey Matter Ltd,472752,5603.31,384904621
BEIS,Met Office,2022-12-15,08 SOFTWARE LICENCES,TECHNOLOGY AND CIO,Ibm United Kingdom Ltd,474155,6292.52,107328000
BEIS,Met Office,2022-12-06,08 SOFTWARE LICENCES,TECHNOLOGY AND CIO,Ibm United Kingdom Ltd,474231,7253.6,107328000
BEIS,Met Office,2022-12-20,11 SERVICES,TECHNOLOGY AND CIO,LAFOSSE ASSOCIATES,474629,16912.5,GB 360026537
BEIS,Met Office,2022-12-21,11 SERVICES,TECHNOLOGY AND CIO,LAFOSSE ASSOCIATES,473327,17325,GB 360026537
BEIS,Met Office,2022-12-05,08 SOFTWARE LICENCES,TECHNOLOGY AND CIO,PRESENTATION CARTOGRAPHY LTD,474213,258.25,-
BEIS,Met Office,2022-12-05,08 SOFTWARE LICENCES,TECHNOLOGY AND CIO,PRESENTATION CARTOGRAPHY LTD,474213,1074.32,-
BEIS,Met Office,2022-12-06,11 SERVICES,TECHNOLOGY AND CIO,QA LTD,474126,28930,864455303
BEIS,Met Office,2022-12-21,11 SERVICES,TECHNOLOGY AND CIO,QA LTD,474716,32790,864455303
BEIS,Met Office,2022-12-06,11 SERVICES,TECHNOLOGY AND CIO,QA LTD,474125,42000,864455303
BEIS,Met Office,2022-12-06,11 SERVICES,TECHNOLOGY AND CIO,SKILLTEC LIMITED,471524,4300,909833105
BEIS,Met Office,2022-12-14,08 SOFTWARE LICENCES,TECHNOLOGY AND CIO,SONARSOURCE SA,10877,3304.08,CHE-114.587.664
BEIS,Met Office,2022-12-09,08 SOFTWARE LICENCES,TECHNOLOGY AND CIO,SPECIALIST COMPUTER CENTRES,474394,7182,313651680
BEIS,Met Office,2022-12-20,11 SERVICES,TECHNOLOGY AND CIO,SSE CONTRACTING LTD,474667,10912.87,382894546
BEIS,Met Office,2022-12-14,11 SERVICES,TECHNOLOGY AND CIO,THE STRENGTHS PEOPLE LTD,474543,1942.2,206868488
BEIS,Met Office,2022-12-06,11 SERVICES,TECHNOLOGY AND CIO,WIREFAST LTD,474184,228.05,749536001
BEIS,Met Office,2022-12-06,11 SERVICES,TECHNOLOGY AND CIO,WIREFAST LTD,474185,1440.69,749536001
BEIS,Met Office,2022-12-06,11 SERVICES,TECHNOLOGY AND CIO,WIREFAST LTD,474183,2037.35,749536001
BEIS,Met Office,2022-12-14,11 SERVICES,TECHNOLOGY AND CIO,WT CONSULTANCY (SW) LTD,472077,2450,223 4662 25
